fUST/lending_fUST_20250204
["ID","MTS","AMOUNT","RATE_DAILY","PERIOD"]
[351609791,1738660251753,-151.0,0.00017671,2]
[351609792,1738660251763,-500.0,0.00017671,2]
[351609793,1738660251774,-2440.5,0.00017671,2]
[351609794,1738660251785,-1065.48,0.00017671,2]
[351609795,1738660251794,-5669.71,0.00017671,2]
[351609796,1738660251804,-671.19,0.00017671,2]
[351609797,1738660251815,-1011.51,0.00017671,2]
[351609798,1738660251825,-1903.12,0.00017671,2]
[351609799,1738660251834,-500.0,0.00017671,2]
[351609800,1738660251844,-908.93,0.00017671,2]
[351609801,1738660251854,-500.0,0.00017671,2]
[351609802,1738660251863,-1198.82,0.00017671,2]
[351609803,1738660251873,-151.0,0.00017671,2]
[351609804,1738660251882,-2408.72,0.00017671,2]
[351609805,1738660251893,-500.0,0.00017671,2]
[351609806,1738660251903,-822.01,0.00017671,2]
[351609807,1738660251913,-969.13,0.00017671,2]
[351609808,1738660251923,-500.0,0.00017671,2]
[351609809,1738660251933,-554.724698,0.00017671,2]
[351609810,1738660251942,-1072.432892,0.00017671,2]
[351609811,1738660251952,-1072.432892,0.00017671,2]
[351609812,1738660251962,-3507.91,0.00017671,2]
[351609813,1738660251971,-1639.61,0.00017671,2]
[351609814,1738660251981,-1000.0,0.00017721,2]
[351609815,1738660251992,-2000.0,0.000178,2]
[351609816,1738660252003,-280.60574313,0.00017807,2]
[351609817,1738660252013,-499.0,0.00017807,4]
[351609818,1738660252022,-151.0,0.00017808,2]
[351609819,1738660252032,-500.0,0.00017808,2]
[351609820,1738660252042,-151.0,0.00017808,2]
[351609821,1738660252051,-151.0,0.00017808,2]
[351609822,1738660252061,-151.0,0.00017808,2]
[351609823,1738660252071,-500.0,0.00017808,2]
[351609824,1738660252082,-500.0,0.00017808,2]
[351609825,1738660252092,-151.0,0.00017808,2]
[351609826,1738660252102,-151.0,0.00017808,2]
[351609827,1738660252111,-151.0,0.00017808,2]
[351609828,1738660252121,-500.0,0.00017808,2]
[351609829,1738660252130,-603.67,0.00017808,2]
[351609830,1738660252140,-174.184778,0.00017808,2]
[351609831,1738660252149,-174.184778,0.00017808,2]
[351609832,1738660252159,-614.16,0.00017808,2]
[351609833,1738660252168,-980.64,0.00017808,2]
[351609834,1738660252177,-955.12,0.00017808,2]
[351609835,1738660252187,-500.0,0.00017808,2]
[351609836,1738660252197,-151.0,0.00017808,2]
[351609837,1738660252212,-500.0,0.00017808,2]
[351609838,1738660252222,-867.03,0.00017808,2]
[351609839,1738660252232,-442.837663,0.00017808,2]
[351609840,1738660252251,-442.837663,0.00017808,2]
[351609841,1738660252262,-500.0,0.00017808,2]
[351609842,1738660252273,-500.0,0.00017808,2]
[351609843,1738660252283,-1461.04,0.00017808,2]
[351609844,1738660252293,-628.87201804,0.00017808,2]
[351609845,1738660252303,-862.92,0.00017808,2]
[351609846,1738660252313,-500.0,0.00017808,2]
[351609847,1738660252323,-151.0,0.00017808,2]
[351609848,1738660252333,-500.0,0.00017808,2]
[351609849,1738660252343,-994.69,0.00017808,2]
[351609850,1738660252353,-2254.25,0.00017808,2]
[351609851,1738660252364,-1371.56,0.00017808,2]
[351609852,1738660252374,-5294.97,0.00017808,2]
[351609853,1738660252384,-746.62,0.00017808,2]
[351609854,1738660252394,-353.52,0.00017808,2]
[351609855,1738660252404,-583.24,0.00017808,2]
[351609856,1738660252415,-950.35,0.00017808,2]
[351609857,1738660252425,-22682.21,0.00017808,2]
[351609858,1738660252435,-861.77,0.00017808,2]
[351609859,1738660252445,-2751.29,0.00017808,2]
[351609860,1738660252455,-769.32,0.00017808,2]
[351609861,1738660252464,-1234.86,0.00017808,2]
[351609862,1738660252474,-1390.67,0.00017808,2]
[351609863,1738660252483,-553.48,0.00017808,2]
[351609864,1738660252493,-619.4,0.00017808,2]
[351609865,1738660252503,-1302.34,0.00017808,2]
[351609866,1738660252512,-694.46,0.00017808,2]
[351609867,1738660252524,-13466.28,0.00017808,2]
[351609868,1738660252534,-3672.04,0.00017808,2]
[351609869,1738660252545,-2957.75,0.00017808,2]
[351609870,1738660252555,-500.0,0.00017808,2]
[351609871,1738660252565,-500.0,0.00017808,2]
[351609872,1738660252574,-457.664858,0.00017808,2]
[351609873,1738660252584,-897.58,0.00017808,2]
[351609874,1738660252594,-457.664858,0.00017808,2]
[351609875,1738660252603,-500.0,0.00017808,2]
[351609876,1738660252613,-1220.61,0.00017808,2]
[351609877,1738660252622,-151.0,0.00017808,2]
[351609878,1738660252631,-500.0,0.00017808,2]
[351609879,1738660252640,-2440.5,0.00017808,2]
[351609880,1738660252649,-1065.48,0.00017808,2]
[351609881,1738660252659,-5669.71,0.00017808,2]
[351609882,1738660252668,-671.19,0.00017808,2]
[351609883,1738660252679,-1011.51,0.00017808,2]
[351609884,1738660252689,-1903.12,0.00017808,2]
[351609885,1738660252698,-500.0,0.00017808,2]
[351609886,1738660252708,-908.93,0.00017808,2]
[351609887,1738660252717,-461.31650369,0.00017808,2]
[351609888,1738660252727,-1198.82,0.00017808,2]
[351609889,1738660252736,-151.0,0.00017808,2]
[351609890,1738660252746,-2408.72,0.00017808,2]
[351609891,1738660252755,-500.0,0.00017808,2]
[351609892,1738660252766,-822.01,0.00017808,2]
[351609893,1738660252776,-969.13,0.00017808,2]
[351609894,1738660252785,-500.0,0.00017808,2]
[351609895,1738660252795,-1072.432892,0.00017808,2]
[351609896,1738660252804,-1072.432892,0.00017808,2]
[351609897,1738660252813,-3507.91,0.00017808,2]
[351609898,1738660252823,-1639.61,0.00017808,2]
[351609899,1738660252835,-284.319213,0.00017808,2]
[351609900,1738660252844,-284.319213,0.00017808,2]
[351609901,1738660252854,-284.319213,0.00017808,2]
[351609902,1738660252864,-284.319213,0.00017808,2]
[351609903,1738660252874,-284.319213,0.00017808,2]
[351609904,1738660252883,-284.319213,0.00017808,2]
[351609905,1738660252893,-284.319213,0.00017808,2]
[351609906,1738660252902,-284.319213,0.00017808,2]
[351609907,1738660252912,-284.319213,0.00017808,2]
[351609908,1738660252921,-284.319213,0.00017808,2]
[351609909,1738660252931,-284.319213,0.00017808,2]
[351609910,1738660252941,-284.319213,0.00017808,2]
[351609911,1738660252951,-284.319213,0.00017808,2]
[351609912,1738660252961,-284.319213,0.00017808,2]
[351609913,1738660252971,-284.319213,0.00017808,2]
[351609914,1738660252980,-284.319213,0.00017808,2]
[351609915,1738660252991,-284.319213,0.00017808,2]
[351609916,1738660253004,-284.319213,0.00017808,2]
[351609917,1738660253014,-15621.62852131,0.0001781,2]
[351609918,1738660253026,-2950.0,0.00017873,2]
[351609919,1738660253149,-1000.0,0.0001788,2]
[351609920,1738660253171,-500.0,0.0001788,2]
[351609921,1738660253181,-925.55997237,0.000179,2]
[351609922,1738660253190,-172.356896,0.00017945,2]
[351609923,1738660253200,-172.356896,0.00017945,2]
[351609924,1738660253211,-500.0,0.00017945,2]
[351609925,1738660253220,-151.0,0.00017945,2]
[351609926,1738660253229,-500.0,0.00017945,2]
[351609927,1738660253239,-603.67,0.00017945,2]
[351609928,1738660253248,-1072.546387,0.00017945,2]
[351609929,1738660253258,-174.184778,0.00017945,2]
[351609930,1738660253267,-1072.546387,0.00017945,2]
[351609931,1738660253279,-174.184778,0.00017945,2]
[351609932,1738660253288,-614.16,0.00017945,2]
[351609933,1738660253297,-980.64,0.00017945,2]
[351609934,1738660253307,-955.12,0.00017945,2]
[351609935,1738660253316,-500.0,0.00017945,2]
[351609936,1738660253326,-500.0,0.00017945,2]
[351609937,1738660253335,-151.0,0.00017945,2]
[351609938,1738660253344,-500.0,0.00017945,2]
[351609939,1738660253354,-867.03,0.00017945,2]
[351609940,1738660253363,-442.837663,0.00017945,2]
[351609941,1738660253372,-442.837663,0.00017945,2]
[351609942,1738660253381,-171.76105351,0.00017945,2]
[351609943,1738660253390,-500.0,0.00017945,2]
[351609944,1738660253400,-1461.04,0.00017945,2]
[351609945,1738660253409,-862.92,0.00017945,2]
[351609946,1738660253418,-500.0,0.00017945,2]
[351609947,1738660253427,-500.0,0.00017945,2]
[351609948,1738660253436,-994.69,0.00017945,2]
[351609949,1738660253446,-2254.25,0.00017945,2]
[351609950,1738660253456,-1371.56,0.00017945,2]
[351609951,1738660253465,-5294.97,0.00017945,2]
[351609952,1738660253474,-746.62,0.00017945,2]
[351609953,1738660253484,-515.0,0.00017945,2]
[351609954,1738660253493,-583.24,0.00017945,2]
[351609955,1738660253503,-500.0,0.00017945,2]
[351609956,1738660253512,-950.35,0.00017945,2]
[351609957,1738660253521,-22682.21,0.00017945,2]
[351609958,1738660253530,-107.68526241,0.00017945,2]
[351609961,1738660719110,1261.62753226,0.00015012,2]
[351609964,1738660956326,196.88305979,0.00015012,2]
[351609966,1738660986235,260.574837,0.00015012,2]
[351609970,1738661043684,472.08,0.00010959,2]
[351609971,1738661044798,195.307087,0.00013973,2]
[351609972,1738661054274,174.84,0.00010959,2]
[351609973,1738661064866,874.23,0.00010959,2]
[351609974,1738661075367,546.39,0.00010959,2]
[351609975,1738661085973,579.51,0.00010959,2]
[351609976,1738661095773,4338.63841753,0.00015012,2]
[351609977,1738661096703,586.4,0.00010959,2]
[351609978,1738661107218,574.91,0.00010959,2]
[351609979,1738661117922,479.09,0.00010959,2]
[351609980,1738661128410,471.1,0.00010959,2]
[351609982,1738661170273,211.65,0.00010959,2]
[351609983,1738661180780,293.31,0.00010959,2]
[351609984,1738661191244,290.91,0.00010959,2]
[351609985,1738661201711,288.91,0.00010959,2]
[351609986,1738661212411,271.75,0.00010959,2]
[351609987,1738661223131,226.46,0.00010959,2]
[351609989,1738661233628,343.67,0.00010959,2]
[351610000,1738661244113,286.39,0.00010959,2]
[351610001,1738661254565,238.66,0.00010959,2]
[351610003,1738661265036,343.29,0.00010959,2]
[351610004,1738661275515,286.08,0.00010959,2]
[351610005,1738661286000,238.4,0.00010959,2]
[351610006,1738661296472,198.66,0.00010959,2]
[351610010,1738661307192,165.55,0.00010959,2]
[351610012,1738661317670,827.8,0.00010959,2]
[351610085,1738661432291,-1407.19947685,0.00015189,2]
[351610092,1738661432351,-857.95976595,0.00015189,2]
[351610094,1738661432361,-500.0,0.00015342,2]
[351610096,1738661432371,-3299.59558925,0.00015553,2]
[351610101,1738661432408,-4974.78650138,0.00015553,2]
[351610265,1738661438041,-16625.61790937,0.00015553,2]
[351610267,1738661438052,-162.34055892,0.00016338,2]
[351610269,1738661438061,-499.0,0.00016437,2]
[351610271,1738661438070,-414.34723486,0.00016438,2]
[351610273,1738661438079,-229.7479453,0.00016438,2]
[351610275,1738661438089,-495.63186622,0.00016438,2]
[351610277,1738661438098,-553.45754452,0.00016438,2]
[351610279,1738661438108,-500.0,0.00016438,2]
[351610281,1738661438118,-500.0,0.00016438,2]
[351610283,1738661438127,-500.0,0.00016438,2]
[351610285,1738661438137,-500.0,0.00016438,2]
[351610287,1738661438147,-500.0,0.00016438,2]
[351610289,1738661438157,-744.21,0.00016438,2]
[351610291,1738661438167,-720.94,0.00016438,2]
[351610293,1738661438176,-500.0,0.00016438,2]
[351610295,1738661438186,-484.28451177,0.00016438,2]
[351610297,1738661438195,-500.0,0.00016438,2]
[351610299,1738661438205,-500.0,0.00016438,2]
[351610301,1738661438215,-500.0,0.00016438,2]
[351610303,1738661438224,-500.0,0.00016438,2]
[351610305,1738661438234,-655.81,0.00016438,2]
[351610307,1738661438243,-500.0,0.00016438,2]
[351610309,1738661438252,-500.0,0.00016438,2]
[351610311,1738661438262,-500.0,0.00016438,2]
[351610313,1738661438272,-1034.9,0.00016438,2]
[351610327,1738661438405,-2801.33,0.00016438,2]
[351610330,1738661438415,-611.24,0.00016438,2]
[351610332,1738661438425,-500.0,0.00016438,2]
[351610334,1738661438434,-500.0,0.00016438,2]
[351610336,1738661438444,-390.85512548,0.00016438,2]
[351610338,1738661438457,-500.0,0.00016438,2]
[351610340,1738661438468,-500.0,0.00016438,2]
[351610342,1738661438478,-500.0,0.00016438,2]
[351610344,1738661438488,-500.0,0.00016438,2]
[351610345,1738661438497,-500.0,0.00016438,2]
[351610347,1738661438507,-500.0,0.00016438,2]
[351610349,1738661438516,-500.0,0.00016438,2]
[351610351,1738661438526,-500.0,0.00016438,2]
[351610353,1738661438540,-500.0,0.00016438,2]
[351610355,1738661438549,-500.0,0.00016438,2]
[351610357,1738661438558,-528.86,0.00016438,2]
[351610359,1738661438568,-500.0,0.00016438,2]
[351610361,1738661438578,-299.35692336,0.00016438,2]
[351610363,1738661438587,-500.0,0.00016438,2]
[351610365,1738661438596,-544.93,0.00016438,2]
[351610367,1738661438605,-16452.23,0.00016438,2]
[351610369,1738661438615,-500.0,0.00016438,2]
[351610371,1738661438624,-701.27,0.00016438,2]
[351610373,1738661438634,-895.53,0.00016438,2]
[351610375,1738661438643,-2047.46,0.00016438,2]
[351610377,1738661438652,-500.0,0.00016438,2]
[351610379,1738661438661,-512.75,0.00016438,2]
[351610381,1738661438671,-2649.63,0.00016438,2]
[351610383,1738661438680,-1005.89,0.00016438,2]
[351610385,1738661438689,-500.0,0.00016438,2]
[351610387,1738661438699,-2095.07,0.00016438,2]
[351610389,1738661438708,-943.33,0.00016438,2]
[351610391,1738661438717,-500.0,0.00016438,2]
[351610393,1738661438727,-500.0,0.00016438,2]
[351610395,1738661438736,-754.71,0.00016438,2]
[351610397,1738661438745,-500.0,0.00016438,2]
[351610398,1738661438755,-695.65,0.00016438,2]
[351610399,1738661438766,-885.43,0.00016438,2]
[351610400,1738661438776,-500.0,0.00016438,2]
[351610401,1738661438787,-475.2486598,0.00016438,2]
[351610402,1738661438797,-1371.7,0.00016438,2]
[351610403,1738661438807,-500.0,0.00016438,2]
[351610404,1738661438816,-870.0,0.00016438,2]
[351610405,1738661438826,-4094.39,0.00016438,2]
[351610406,1738661438835,-500.0,0.00016438,2]
[351610407,1738661438845,-664.66,0.00016438,2]
[351610408,1738661438854,-1762.56,0.00016438,2]
[351610409,1738661438864,-603.09,0.00016438,2]
[351610410,1738661438873,-6416.6,0.00016438,2]
[351610411,1738661438883,-500.0,0.00016438,2]
[351610412,1738661438892,-500.0,0.00016438,2]
[351610413,1738661438902,-500.0,0.00016438,2]
[351610414,1738661438911,-1741.97,0.00016438,2]
[351610415,1738661438921,-500.0,0.00016438,2]
[351610416,1738661438931,-737.32,0.00016438,2]
[351610417,1738661438940,-1532.41,0.00016438,2]
[351610418,1738661438950,-500.0,0.00016438,2]
[351610419,1738661438959,-725.4,0.00016438,2]
[351610420,1738661438969,-500.0,0.00016438,2]
[351610421,1738661438979,-1668.05,0.00016438,2]
[351610422,1738661438988,-500.0,0.00016438,2]
[351610423,1738661438997,-3116.47,0.00016438,2]
[351610424,1738661439006,-3852.12,0.00016438,2]
[351610425,1738661439016,-500.0,0.00016438,2]
[351610426,1738661439025,-500.0,0.00016438,2]
[351610427,1738661439036,-631.25,0.00016438,2]
[351610428,1738661439045,-1013.19,0.00016438,2]
[351610429,1738661439054,-500.0,0.00016438,2]
[351610430,1738661439064,-9815.74,0.00016438,2]
[351610431,1738661439073,-646.93084868,0.00016438,2]
[351610432,1738661439083,-500.0,0.00016438,2]
[351610433,1738661439092,-500.0,0.00016473,2]
[351610434,1738661439102,-7438.69753278,0.000165,2]
[351610435,1738661439112,-133232.1005022,0.000165,2]
[351610436,1738661439121,-500.0,0.00016575,2]
[351610437,1738661439131,-500.0,0.00016575,2]
[351610438,1738661439141,-500.0,0.00016575,2]
[351610439,1738661439150,-628.87201804,0.00016575,2]
[351610440,1738661439159,-378.27194955,0.00016575,2]
[351610441,1738661439169,-744.21,0.00016575,2]
[351610442,1738661439179,-720.94,0.00016575,2]
[351610443,1738661439188,-500.0,0.00016575,2]
[351610444,1738661439198,-500.0,0.00016575,2]
[351610445,1738661439207,-312.50620919,0.00016575,2]
[351610446,1738661439217,-500.0,0.00016575,2]
[351610447,1738661439227,-500.0,0.00016575,2]
[351610448,1738661439237,-655.81,0.00016575,2]
[351610449,1738661439247,-500.0,0.00016575,2]
[351610450,1738661439256,-500.0,0.00016575,2]
[351610451,1738661439266,-500.0,0.00016575,2]
[351610452,1738661439275,-1034.9,0.00016575,2]
[351610453,1738661439287,-2801.33,0.00016575,2]
[351610454,1738661439296,-611.24,0.00016575,2]
[351610455,1738661439305,-500.0,0.00016575,2]
[351610456,1738661439315,-500.0,0.00016575,2]
[351610457,1738661439324,-500.0,0.00016575,2]
[351610458,1738661439334,-500.0,0.00016575,2]
[351610459,1738661439344,-566.9,0.00016575,2]
[351610460,1738661439353,-500.0,0.00016575,2]
[351610461,1738661439363,-528.86,0.00016575,2]
[351610462,1738661439374,-500.0,0.00016575,2]
[351610463,1738661439384,-500.0,0.00016575,2]
[351610464,1738661439393,-544.93,0.00016575,2]
[351610465,1738661439403,-16452.23,0.00016575,2]
[351610466,1738661439413,-500.0,0.00016575,2]
[351610467,1738661439422,-701.27,0.00016575,2]
[351610468,1738661439432,-895.53,0.00016575,2]
[351610469,1738661439443,-2047.46,0.00016575,2]
[351610470,1738661439455,-500.0,0.00016575,2]
[351610471,1738661439464,-512.75,0.00016575,2]
[351610472,1738661439474,-2649.63,0.00016575,2]
[351610473,1738661439484,-1005.89,0.00016575,2]
[351610474,1738661439494,-500.0,0.00016575,2]
[351610475,1738661439504,-2095.07,0.00016575,2]
[351610476,1738661439513,-943.33,0.00016575,2]
[351610477,1738661439523,-500.0,0.00016575,2]
[351610478,1738661439536,-500.0,0.00016575,2]
[351610480,1738661439545,-754.71,0.00016575,2]
[351610481,1738661439554,-500.0,0.00016575,2]
[351610482,1738661439563,-695.65,0.00016575,2]
[351610484,1738661439573,-885.43,0.00016575,2]
[351610485,1738661439582,-500.0,0.00016575,2]
[351610486,1738661439591,-1371.7,0.00016575,2]
[351610487,1738661439601,-500.0,0.00016575,2]
[351610488,1738661439610,-870.0,0.00016575,2]
[351610489,1738661439620,-4094.39,0.00016575,2]
[351610490,1738661439629,-500.0,0.00016575,2]
[351610491,1738661439639,-664.66,0.00016575,2]
[351610492,1738661439648,-1762.56,0.00016575,2]
[351610493,1738661439657,-603.09,0.00016575,2]
[351610494,1738661439667,-6416.6,0.00016575,2]
[351610495,1738661439676,-500.0,0.00016575,2]
[351610496,1738661439685,-500.0,0.00016575,2]
[351610497,1738661439694,-500.0,0.00016575,2]
[351610498,1738661439706,-1741.97,0.00016575,2]
[351610499,1738661439719,-500.0,0.00016575,2]
[351610500,1738661439732,-737.32,0.00016575,2]
[351610501,1738661439745,-500.0,0.00016575,2]
[351610502,1738661439758,-1532.41,0.00016575,2]
[351610503,1738661439769,-725.4,0.00016575,2]
[351610504,1738661439780,-1668.05,0.00016575,2]
[351610505,1738661439792,-164.8,0.00016575,2]
[351610506,1738661439804,-3116.47,0.00016575,2]
[351610507,1738661439815,-3852.12,0.00016575,2]
[351610508,1738661439827,-308.40023249,0.00016575,2]
[351610509,1738661439840,-500.0,0.00016575,2]
[351610510,1738661439852,-631.25,0.00016575,2]
[351610511,1738661439864,-1013.19,0.00016575,2]
[351610512,1738661439876,-446.29785688,0.00016575,2]
[351610513,1738661439888,-9815.74,0.00016575,2]
[351610514,1738661439901,-2293.16,0.000167,2]
[351610515,1738661439913,-151.0,0.00016712,2]
[351610516,1738661439926,-151.0,0.00016712,2]
[351610517,1738661439937,-181.049827,0.00016712,2]
[351610518,1738661439949,-181.049827,0.00016712,2]
[351610519,1738661439961,-500.0,0.00016712,2]
[351610520,1738661439972,-171.76105351,0.00016712,2]
[351610521,1738661439984,-744.21,0.00016712,2]
[351610522,1738661439997,-720.94,0.00016712,2]
[351610523,1738661440008,-500.0,0.00016712,2]
[351610524,1738661440020,-500.0,0.00016712,2]
[351610525,1738661440030,-214.25,0.00016712,2]
[351610526,1738661440042,-500.0,0.00016712,2]
[351610527,1738661440052,-655.81,0.00016712,2]
[351610528,1738661440063,-500.0,0.00016712,2]
[351610529,1738661440074,-500.0,0.00016712,2]
[351610530,1738661440086,-500.0,0.00016712,2]
[351610531,1738661440098,-1034.9,0.00016712,2]
[351610532,1738661440110,-2801.33,0.00016712,2]
[351610533,1738661440123,-611.24,0.00016712,2]
[351610534,1738661440134,-500.0,0.00016712,2]
[351610535,1738661440146,-500.0,0.00016712,2]
[351610536,1738661440159,-500.0,0.00016712,2]
[351610537,1738661440171,-500.0,0.00016712,2]
[351610538,1738661440184,-500.0,0.00016712,2]
[351610539,1738661440197,-528.86,0.00016712,2]
[351610540,1738661440209,-500.0,0.00016712,2]
[351610541,1738661440219,-500.0,0.00016712,2]
[351610542,1738661440229,-544.93,0.00016712,2]
[351610543,1738661440240,-16452.23,0.00016712,2]
[351610544,1738661440250,-500.0,0.00016712,2]
[351610545,1738661440262,-701.27,0.00016712,2]
[351610546,1738661440274,-895.53,0.00016712,2]
[351610548,1738661440289,-2047.46,0.00016712,2]
[351610550,1738661440302,-500.0,0.00016712,2]
[351610553,1738661440315,-512.75,0.00016712,2]
[351610555,1738661440326,-2649.63,0.00016712,2]
[351610556,1738661440337,-1005.89,0.00016712,2]
[351610558,1738661440349,-500.0,0.00016712,2]
[351610560,1738661440360,-2095.07,0.00016712,2]
[351610562,1738661440372,-943.33,0.00016712,2]
[351610564,1738661440384,-500.0,0.00016712,2]
[351610566,1738661440395,-500.0,0.00016712,2]
[351610568,1738661440405,-754.71,0.00016712,2]
[351610570,1738661440416,-500.0,0.00016712,2]
[351610572,1738661440426,-695.65,0.00016712,2]
[351610574,1738661440437,-885.43,0.00016712,2]
[351610576,1738661440448,-500.0,0.00016712,2]
[351610577,1738661440461,-1371.7,0.00016712,2]
[351610579,1738661440472,-500.0,0.00016712,2]
[351610581,1738661440483,-870.0,0.00016712,2]
[351610582,1738661440496,-4094.39,0.00016712,2]
[351610583,1738661440507,-500.0,0.00016712,2]
[351610584,1738661440517,-664.66,0.00016712,2]
[351610585,1738661440530,-1762.56,0.00016712,2]
[351610586,1738661440542,-603.09,0.00016712,2]
[351610587,1738661440554,-6416.6,0.00016712,2]
[351610588,1738661440565,-554.724698,0.00016712,2]
[351610589,1738661440576,-500.0,0.00016712,2]
[351610590,1738661440587,-500.0,0.00016712,2]
[351610591,1738661440598,-1741.97,0.00016712,2]
[351610592,1738661440609,-500.0,0.00016712,2]
[351610593,1738661440620,-737.32,0.00016712,2]
[351610594,1738661440631,-500.0,0.00016712,2]
[351610595,1738661440642,-1532.41,0.00016712,2]
[351610596,1738661440653,-725.4,0.00016712,2]
[351610597,1738661440664,-1668.05,0.00016712,2]
[351610598,1738661440675,-3116.47,0.00016712,2]
[351610599,1738661440686,-3852.12,0.00016712,2]
[351610600,1738661440697,-500.0,0.00016712,2]
[351610601,1738661440709,-631.25,0.00016712,2]
[351610602,1738661440720,-1013.19,0.00016712,2]
[351610603,1738661440731,-9815.74,0.00016712,2]
[351610604,1738661440742,-202.05114767,0.00016821,2]
[351610605,1738661440753,-500.0,0.00016848,2]
[351610606,1738661440763,-316.40134557,0.00016848,2]
[351610607,1738661440775,-500.0,0.00016848,2]
[351610608,1738661440788,-500.0,0.00016848,2]
[351610609,1738661440799,-500.0,0.00016848,2]
[351610610,1738661440810,-500.0,0.00016848,2]
[351610611,1738661440821,-500.0,0.00016848,2]
[351610612,1738661440833,-500.0,0.00016848,2]
[351610613,1738661440845,-500.0,0.00016848,2]
[351610614,1738661440856,-500.0,0.00016848,2]
[351610615,1738661440866,-500.0,0.00016848,2]
[351610616,1738661440878,-296.67055866,0.00016848,2]
[351610617,1738661440888,-500.0,0.00016848,2]
[351610618,1738661440900,-500.0,0.00016848,2]
[351610619,1738661440911,-151.0,0.00016849,2]
[351610620,1738661440923,-151.0,0.00016849,2]
[351610621,1738661440934,-181.049827,0.00016849,2]
[351610622,1738661440945,-181.049827,0.00016849,2]
[351610623,1738661440956,-744.21,0.00016849,2]
[351610624,1738661440967,-720.94,0.00016849,2]
[351610625,1738661440979,-500.0,0.00016849,2]
[351610626,1738661440990,-500.0,0.00016849,2]
[351610627,1738661441000,-500.0,0.00016849,2]
[351610628,1738661441011,-655.81,0.00016849,2]
[351610629,1738661441022,-500.0,0.00016849,2]
[351610630,1738661441034,-500.0,0.00016849,2]
[351610631,1738661441045,-461.31650369,0.00016849,2]
[351610632,1738661441056,-1034.9,0.00016849,2]
[351610633,1738661441067,-2801.33,0.00016849,2]
[351610634,1738661441077,-611.24,0.00016849,2]
[351610635,1738661441089,-500.0,0.00016849,2]
[351610636,1738661441099,-500.0,0.00016849,2]
[351610637,1738661441110,-202.24429713,0.00016849,2]
[351610638,1738661441121,-500.0,0.00016849,2]
[351610639,1738661441132,-353.52,0.00016849,2]
[351610640,1738661441142,-528.86,0.00016849,2]
[351610641,1738661441154,-500.0,0.00016849,2]
[351610642,1738661441165,-500.0,0.00016849,2]
[351610643,1738661441176,-544.93,0.00016849,2]
[351610644,1738661441187,-16452.23,0.00016849,2]
[351610645,1738661441199,-500.0,0.00016849,2]
[351610646,1738661441209,-701.27,0.00016849,2]
[351610647,1738661441373,-895.53,0.00016849,2]
[351610648,1738661441385,-2047.46,0.00016849,2]
[351610649,1738661441394,-500.0,0.00016849,2]
[351610650,1738661441404,-512.75,0.00016849,2]
[351610651,1738661441414,-2649.63,0.00016849,2]
[351610652,1738661441423,-1005.89,0.00016849,2]
[351610653,1738661441433,-500.0,0.00016849,2]